{"text_format":"1","workbook":"xlsx","n_sheets":13,"sheets":["1. Forside","2. Samlet prisloft","3. Driftsomkostninger","4. Historiske investeringer","5. Gennemførte investeringer","6. Korrektion investeringer","7. Planlagte investeringer","8. 1-1 omkostninger","9. Miljø- og servicemål","10. Klimatilpasning","11. Nettofinansielle poster","12. Over- eller underdækning","13. Kontrol med indtægtsrammen"],"not_rendered":{"charts":0,"images":0,"macros":1,"external_links":0,"defined_names":0,"comments":0,"pivot_tables":0},"unopened":[],"bounds":{"document_bytes":16777216,"sheet_cells":100000,"rows_first":2000,"rows_last":500,"rows_between":2000,"halvings":0,"cell_chars":16384,"cell_head_chars":4096},"cells_cut":0,"cells_raw":0,"read":"whole","date_system":"1900"}

{"sheet":"1. Forside","index":0,"n_rows":27,"n_cols":4,"rows_kept":27,"cut":false,"hidden":false,"merged":[[21,3,21,5],[20,3,20,5],[19,3,19,5],[18,3,18,5],[7,3,7,5],[12,3,12,5],[15,3,15,5],[16,3,16,5],[17,3,17,5],[26,3,26,5],[25,3,25,5],[24,3,24,5],[23,3,23,5],[22,3,22,5]]}
["Ringkøbing-Skjern Spildevand A/S"]
[]
[]
[]
[]
[]
[]
[null,null,null,"Bilag A"]
[]
[]
[]
[]
[null,null,null,"Indholdsfortegnelse"]
[]
[]
[null,null,"Fane nr. 2","Samlet prisloft "]
[null,null,"Fane nr. 3","Driftsomkostninger"]
[null,null,"Fane nr. 4","Historiske investeringer "]
[null,null,"Fane nr. 5","Gennemførte investeringer"]
[null,null,"Fane nr. 6","Korrektion investeringer"]
[null,null,"Fane nr. 7","Planlagte investeringer"]
[null,null,"Fane nr. 8","1:1 omkostninger"]
[null,null,"Fane nr. 9","Miljø- og servicemål"]
[null,null,"Fane nr. 10","Klimatilpasning"]
[null,null,"Fane nr. 11","Nettofinansielle poster"]
[null,null,"Fane nr. 12","Over- eller underdækning"]
[null,null,"Fane nr. 13","Kontrol med indtægtsrammen og oversigt over ekstraordinære effektiviseringsgevinster"]

{"sheet":"2. Samlet prisloft","index":1,"n_rows":38,"n_cols":6,"rows_kept":38,"cut":false,"hidden":false,"merged":[[3,1,3,5]]}
[{"$f":"'1. Forside'!A1","v":"Ringkøbing-Skjern Spildevand A/S"}]
[]
[]
[null,"Fane 2. Samlet prisloft for 2015"]
[]
[null,"Driftsomkostninger"]
[null,"Driftsomkostninger i prisloftet for 2014",{"$f":"'3. Driftsomkostninger'!C20","v":13937629.295},"kr."]
[null,"Bortfald af væsentlige omkostninger",{"$f":"-'3. Driftsomkostninger'!C16","v":0},"kr."]
[null,"Korrektion for prisudviklingen 2014-2015",{"$f":"'3. Driftsomkostninger'!C22","v":11150.103436000001},"kr."]
[null,"Forhøjelse til effektivt niveau iht. benchmarkingen",{"$f":"'3. Driftsomkostninger'!C28","v":0},"kr."]
[null,"Korrektion for generelt effektiviseringskrav",{"$f":"-'3. Driftsomkostninger'!C34","v":-61325.568898000005},"kr."]
[null,"Korrektion for individuelt effektiviseringskrav",{"$f":"-'3. Driftsomkostninger'!C43","v":-160979.5},"kr."]
[null,"Driftsomkostninger i alt",{"$f":"SUM(C7:C12)","v":13726474.329538001},"kr.",{"$f":"C13","v":13726474.329538001}," kr."]
[null,"Investeringer"]
[null,"Tillæg for historiske investeringer",{"$f":"'4. Historiske investeringer'!C9","v":47474343.77157335},"kr."]
[null,"Tillæg for gennemførte investeringer i 2011-2013",{"$f":"'5. Gennemførte investeringer'!F33","v":3708159.0242333333},"kr."]
[null,"Korrektion af tillæg for planlagte investeringer vedrørende 2013  ",{"$f":"'6. Korrektion investeringer'!C10","v":136617.84666666668},"kr."]
[null,"Tillæg for planlagte investeringer i 2014 og 2015",{"$f":"'7. Planlagte investeringer'!F34","v":2172956.3333333335},"kr."]
[null,"Investeringstillæg i alt",{"$f":"SUM(C15:C18)","v":53492076.975806683},"kr.",{"$f":"C19","v":53492076.975806683}," kr."]
[null,"Øvrige omkostninger mv."]
[null,"Tillæg for 1:1 omkostninger i 2015",{"$f":"'8. 1-1 omkostninger'!C11","v":64571},"kr."]
[null,"Tillæg vedr. revisorerklæringer og DANVA/FVD-kontingent",{"$f":"'8. 1-1 omkostninger'!C19","v":79000},"kr."]
[null,"Korrektion ift. faktiske 1:1 omkostninger i 2013",{"$f":"'8. 1-1 omkostninger'!C25","v":-1595284},"kr."]
[null,"Tillæg for driftsomkostninger til miljø- og servicemål i 2015",{"$f":"'9. Miljø- og servicemål'!C8","v":75000},"kr."]
[null,"Korrektion ift. faktiske driftsomkostninger til miljø- og servicemål i 2013",{"$f":"'9. Miljø- og servicemål'!C15","v":44016},"kr."]
[null,"Tillæg for driftsomkostninger til medfinansiering af klimatilpasningsprojekter i 2015",{"$f":"'10. Klimatilpasning'!C9","v":0},"kr."]
[null,"Korrektion ift. faktiske omkostninger til medfinansiering af klimatilpasningsprojekter i 2013",{"$f":"'10. Klimatilpasning'!C16","v":0},"kr."]
[null,"Tillæg/fradrag for nettofinansielle poster i 2015",{"$f":"'11. Nettofinansielle poster'!C9","v":606000},"kr."]
[null,"Korrektion ift. faktiske nettofinansielle poster i 2013",{"$f":"'11. Nettofinansielle poster'!C16","v":-642999},"kr."]
[null,"Øvrige omkostninger mv. i alt",{"$f":"SUM(C21:C29)","v":-1369696},"kr.",{"$f":"C30","v":-1369696}," kr."]
[null,"Historisk over- eller underdækning"]
[null,"Tillæg/fradrag for over- eller underdækning til og med 2010",{"$f":"'12. Over- eller underdækning'!C11","v":0},"kr.",{"$f":"C32","v":0}," kr."]
[null,"Korrektion i forhold til tidligere indtægtsramme "]
[null,"Korrektion for overholdelse af indtægtsramme i prisloft 2013",{"$f":"'13. Kontrol med indtægtsrammen'!E27","v":-3059609.5},"kr.",{"$f":"C34","v":-3059609.5}," kr."]
[null,"Samlet prisloft"]
[null,"Indtægtsramme i 2015 ",null,null,{"$f":"SUM(E13:E34)","v":62789245.805344686}," kr."]
[null,"Debiteret vandmængde i 2013",null,null,2257988," m3"]
[null,"Prisloft 2015",null,null,{"$f":"E36/E37","v":27.80760828017894}," kr./m3"]

{"sheet":"3. Driftsomkostninger","index":2,"n_rows":43,"n_cols":4,"rows_kept":43,"cut":false,"hidden":false,"merged":[[3,1,3,3]]}
[{"$f":"'1. Forside'!A1","v":"Ringkøbing-Skjern Spildevand A/S"}]
[]
[]
[null,"Fane 3. Driftsomkostninger "]
[]
[null,"Driftsomkostningerne i prisloftet for 2014"]
[null,"Korrigerede driftsomkostninger i prisloftet for 2013 (DOiPL 2013)",13937753,"kr."]
[null,"Prisfremskrivning 1,5 pct.",{"$f":"0.015*SUM(C7:C7)","v":209066.29499999998},"kr."]
[null,"Generelt effektiviseringskrav (0 pct.)",0,"kr."]
[null,"Individuelt effektiviseringskrav ",-209190,"kr."]
[null,"Driftsomkostningerne i prisloftet for 2014 (DOiPL 2014)",{"$f":"SUM(C7:C10)","v":13937629.295},"kr."]
[]
[]
[null,"Korrektion for forventet bortfald af væsentlige omkostninger"]
[null,"Selskabets indberettede bortfald af væsentlige omkostninger inden 2015",0,"kr."]
[null,"Korrektion for forventet bortfald ",{"$f":"SUM(C15:C15)","v":0},"kr."]
[]
[]
[null,"Korrektion for prisudviklingen fra 2014-2015"]
[null,"Driftsomkostningerne i prisloftet for 2014",{"$f":"C11-C16","v":13937629.295},"kr."]
[null,"Prisudvikling 2014 - 2015 ",0.08,"pct."]
[null,"Korrektion for prisudvikling",{"$f":"C20*(C21/100)","v":11150.103436000001},"kr."]
[]
[]
[null,"Eventuel forhøjelse til effektivt niveau iht. benchmarkingen"]
[null,"Selskabets effektive driftsomkostninger iht. benchmarkingen",11448369,"kr."]
[null,"Selskabets pristalskorrigerede driftsomkostninger i 2015-niveau",{"$f":"C20+C22","v":13948779.398436001},"kr."]
[null,"Eventuel forhøjelse til effektivt niveau",{"$f":"IF(C27>C26,0,C26-C27)","v":0},"kr."]
[]
[]
[null,"Korrektion for generelt effektiviseringskrav"]
[null,"Driftsomkostningerne i prisloftet for 2014",{"$f":"C20","v":13937629.295},"kr. "]
[null,"Generelt effektiviseringskrav ",0.44,"pct."]
[null,"Endeligt generelt effektiviseringskrav",{"$f":"C32*(C33/100)","v":61325.568898000005},"kr. "]
[]
[]
[null,"Korrektion for individuelt effektiviseringskrav"]
[null,"Rå effektiviseringspotentiale",2705294,"kr."]
[null,"Effektiviseringspotentiale efter eventuel korrektion for særlige forhold",2489261,"kr."]
[null,"Effektiviseringspotentiale efter forsigtighedshensyn",643918,"kr."]
[null,"Effektiviseringspotentiale efter eventuel korrektion for sammensætning af signifikante costdrivere",643918,"kr. "]
[null,"Umiddelbart effektiviseringskrav",{"$f":"C41/4","v":160979.5},"kr."]
[null,"Endeligt individuelt effektiviseringskrav",{"$f":"IF(C42>0.05*C20,0.05*C20,IF(C42<0.01*C20,0,C42))","v":160979.5},"kr. "]

{"sheet":"4. Historiske investeringer","index":3,"n_rows":9,"n_cols":4,"rows_kept":9,"cut":false,"hidden":false,"merged":[[3,1,3,2]]}
[{"$f":"'3. Driftsomkostninger'!A1","v":"Ringkøbing-Skjern Spildevand A/S"}]
[]
[]
[null,"Fane 4. Historiske investeringer "]
[]
[null,"Tillæg for historiske investeringer "]
[null,"Værdi af selskabets materielle anlægsaktiver pr. 1. januar 2010",2343264178.9028902,"kr."]
[null,"Den årlige standardafskrivning på de materielle anlægsaktiver iht. POLKA",47474343.77157335,"kr."]
[null,"Tillæg i alt i 2015",{"$f":"C8","v":47474343.77157335},"kr."]

{"sheet":"5. Gennemførte investeringer","index":4,"n_rows":33,"n_cols":7,"rows_kept":33,"cut":false,"hidden":false,"merged":[[3,1,3,5],[6,5,6,6]]}
[{"$f":"'4. Historiske investeringer'!A1","v":"Ringkøbing-Skjern Spildevand A/S"}]
[]
[]
[null,"Fane 5. Gennemførte investeringer i 2010 - 2013 "]
[]
[null,"Tillæg for gennemførte investeringer i 2013"]
[null," Beskrivelse af investeringen   ","Årstal ","Std. levetid (år)   "," Anskaffelses-pris (kr.)","Afskrivning "]
[null,"Brønde",2013,75,3387752,45170.026666666665,"kr."]
[null,"Stik",2013,75,3557792,47437.226666666669,"kr."]
[null,"Forsinkelsesbassinner, lukkede uden automatisk rensning og SRO miljøklasse B (mindre end 1.000 m3)",2013,50,2691222,53824.44,"kr."]
[null,"Værksteder, garager",2013,75,402754,5370.0533333333333,"kr."]
[null,"Jordbassin Klasse B",2013,50,103727,2074.54,"kr."]
[null,"Ledningsnet = Ø 200mm",2013,75,3643422,48578.96,"kr."]
[null,"Strømpeforing Ø200 mm < Ledningsnet = Ø 500 mm",2013,50,662869,13257.38,"kr."]
[null,"Ø 200 mm < Ledningsnet = Ø 500 mm",2013,75,9981181,133082.41333333333,"kr."]
[null,"Ø 500 mm < Ledningsnet = Ø 800 mm",2013,75,146402,1952.0266666666666,"kr."]
[null,"Imstallationer \"ingen eller faste riste\" (mindre end 7 m2)",2013,20,53673,2683.65,"kr."]
[null,"Pumpestationer i brønde (<6,25 m2), Konstruktioner",2013,50,2088791,41775.82,"kr."]
[null,"Pumpestationer i brønde (<6,25 m2), Mek/EL",2013,20,595079,29753.95,"kr."]
[null,"Pumpestationer i brønde (<6,25 m2), SRO",2013,10,136780,13678,"kr."]
[null,"Pumpestationer i underjordiske bygværker (<50 m2), Konstruktioner",2013,50,2641387,52827.74,"kr."]
[null,"Pumpestationer i underjordiske bygværker (<50 m2), Mek/El",2013,20,528277,26413.85,"kr."]
[null,"Pumpestationer i underjordiske bygværker (<50 m2), SRO",2013,10,132069,13206.9,"kr."]
[null,"Tryksatte minipumpestationer (husstandssystemer)",2013,30,1098237,36607.9,"kr."]
[null,"Andre bygninger (tekniske installationer, målere mv)",2013,75,39820,530.93333333333328,"kr."]
[null,"Jordbassin Klasse B",2013,50,870325,17406.5,"kr."]
[null,"Indløb-/udløbsarrangement",2013,75,31581,421.08,"kr."]
[null,"Pumpeinstallation Miljøklasse A (100-300 l/s) - Mek/EL",2013,20,253218,12660.9,"kr."]
[null,"Øvrig infrastruktur (fiber) - indberettet på mail",2013,30,589220.5,19640.683333333334,"kr."]
[null,"Fælles funktionsanlæg (arbejdsplads)",2013,5,1403963.5,280792.7,"kr."]
[null,"Tillæg for 2013 ",null,null,null,{"$f":"SUM(F8:F30)","v":899147.67333333334},"kr."]
[null,"Tillæg for 2010 - 2012",null,null,null,2809011.3509,"kr."]
[null,"Samlet tillæg for gennemførte investeringer",null,null,null,{"$f":"F31+F32","v":3708159.0242333333},"kr."]

{"sheet":"6. Korrektion investeringer","index":5,"n_rows":10,"n_cols":4,"rows_kept":10,"cut":false,"hidden":false,"merged":[[3,1,3,3]]}
[{"$f":"'5. Gennemførte investeringer'!A1","v":"Ringkøbing-Skjern Spildevand A/S"}]
[]
[]
[null,"Fane 6. Korrektion af tillæg for planlagte investeringer"]
[]
[null,"Korrektion af tillæg for planlagte investeringer vedr. 2013"]
[null,"Tillæg for planlagte investeringer i 2013 i prisloft 2013",681536,"kr."]
[null,"Tillæg for planlagte investeringer i 2013 i prisloft 2014",980141.5,"kr."]
[null,"Selskabets faktiske afskrivninger på gennemførte investeringer i 2013",{"$f":"'5. Gennemførte investeringer'!F31","v":899147.67333333334},"kr."]
[null,"Korrektion af tillæg for planlagte investeringer vedr. 2013",{"$f":"C9-C7+C9-C8","v":136617.84666666668},"kr."]

{"sheet":"7. Planlagte investeringer","index":6,"n_rows":34,"n_cols":7,"rows_kept":34,"cut":false,"hidden":false,"merged":[[6,5,6,6],[3,1,3,6]]}
[{"$f":"'6. Korrektion investeringer'!A1","v":"Ringkøbing-Skjern Spildevand A/S"}]
[]
[]
[null,"Fane 7. Planlagte investeringer "]
[]
[null,"Tillæg for planlagte investeringer i 2014 og 2015"]
[null,"Beskrivelse af investeringen   ","Årstal ","Std. levetid (år)   ","Anskaffelses-pris (kr.)   ","Afskrivning"]
[null,"Arbejdsplads",2014,5,391550,78310,"kr."]
[null,"Pumpestationer i brønde (< 6,25 m2), SRO",2014,10,3383400,338340,"kr."]
[null,"Pumpestationer i brønde (< 6,25 m2), Mek/EL",2014,20,908100,45405,"kr."]
[null,"Tryksatte minipumpestationer (husstandssystemer)",2014,30,1500000,50000,"kr."]
[null,"Jordbassin Klasse B",2014,50,232800,4656,"kr."]
[null,"Pumpestationer i brønde (< 6,25 m2), Konstruktioner",2014,50,4177000,83540,"kr."]
[null,"Administrationbygninger",2014,75,16699000,222653.33333333334,"kr."]
[null,"Ledningsnet = Ø 200 mm",2014,75,7814200,104189.33333333333,"kr."]
[null,"Ø 200 mm < Ledningsnet = Ø 500 mm",2014,75,11852200,158029.33333333334,"kr."]
[null,"Brønde",2014,75,2000000,26666.666666666668,"kr."]
[null,"Stik",2014,75,2000000,26666.666666666668,"kr."]
[null,"Fibernet",2014,30,605000,20166.666666666668,"kr."]
[null,"Ledningsnet = Ø 200 mm",2015,75,1800000,24000,"kr."]
[null,"Ø 200 mm < Ledningsnet = Ø 500 mm",2015,75,25500000,340000,"kr."]
[null,"Brønde",2015,75,1500000,20000,"kr."]
[null,"Stik",2015,75,1500000,20000,"kr."]
[null,"Pumpestationer i brønde (< 6,25 m2), Konstruktioner",2015,50,3000000,60000,"kr."]
[null,"Jordbassin Klasse B",2015,50,3850000,77000,"kr."]
[null,"Tryksatte minipumpestationer (husstandssystemer)",2015,30,900000,30000,"kr."]
[null,"Pumpestationer i brønde (< 6,25 m2), Mek/EL",2015,20,1100000,55000,"kr."]
[null,"Pumpestationer i brønde (< 6,25 m2), SRO",2015,10,950000,95000,"kr."]
[null,"Arbejdsplads",2015,5,800000,160000,"kr."]
[null,"Administrationbygninger",2015,75,7750000,103333.33333333333,"kr."]
[null,"Fibernet",2015,30,900000,30000,"kr."]
[null,"Tillæg for 2014",null,null,null,{"$f":"SUMIF(C8:C31,\"2014\",F8:F31)","v":1158623.0000000002},"kr."]
[null,"Tillæg for 2015",null,null,null,{"$f":"SUMIF(C8:C31,\"2015\",F8:F31)","v":1014333.3333333334},"kr."]
[null,"Tillæg i alt",null,null,null,{"$f":"F32+F33","v":2172956.3333333335},"kr."]

{"sheet":"8. 1-1 omkostninger","index":7,"n_rows":25,"n_cols":4,"rows_kept":25,"cut":false,"hidden":false,"merged":[[3,1,3,3],[15,1,15,3],[21,1,21,3]]}
[{"$f":"'7. Planlagte investeringer'!A1","v":"Ringkøbing-Skjern Spildevand A/S"}]
[]
[]
[null,"Fane 8. 1:1 omkostninger"]
[]
[null,"Tillæg for budgetterede 1:1 omkostninger i 2015"]
[null,"Betaling til Forsyningssekretariatet",null,"kr."]
[null,"Spildevandsafgift",null,"kr."]
[null,"Køb af varer og tjenesteydelser hos et andet prisloftreguleret vandselskab",null,"kr."]
[null,"Ejendomsskatter",null,"kr."]
[null,"Tillæg i alt ",64571,"kr."]
[]
[]
[]
[]
[null,"Tillæg for budgetterede nødvendige udgifter til revisorerklæringer samt ordinært medlemskab af DANVA og FVD i 2015"]
[null,"Betaling for ordinært medlemskab af DANVA/FVD",null,"kr."]
[null,"Betaling for revisorerklæringer",null,"kr."]
[null,"Tillæg i alt ",79000,"kr."]
[]
[]
[null,"Korrektion af tillæg for faktiske 1:1 omkostninger (inkl. revisorerklæringer og ordinært medlemskab af DANVA/FVD) i 2013"]
[null,"Selskabets faktiske 1:1 omkostninger mv. i 2013, jf. reguleringsregnskabet",-243284,"kr."]
[null,"Tillæg for budgetterede 1:1 omkostninger mv. i prisloft 2013",1352000,"kr."]
[null,"Korrektion af tillæg for budgetterede 1:1 omkostninger mv. i 2013",{"$f":"C23-C24","v":-1595284},"kr."]

{"sheet":"9. Miljø- og servicemål","index":8,"n_rows":15,"n_cols":4,"rows_kept":15,"cut":false,"hidden":false,"merged":[[3,1,3,3]]}
[{"$f":"'8. 1-1 omkostninger'!A1","v":"Ringkøbing-Skjern Spildevand A/S"}]
[]
[]
[null,"Fane 9. Driftsomkostninger til miljø- og servicemål "]
[]
[null,"Tillæg for budgetterede driftsomkostninger til miljø- og servicemål i 2015"]
[null,"Ledelsessystem og SMS-service",75000,"kr."]
[null,"Tillæg i alt",{"$f":"SUM(C7:C7)","v":75000},"kr."]
[]
[]
[]
[null,"Korrektion af tillæg for faktiske driftsomkostninger til miljø- og servicemål i 2013"]
[null,"Selskabets faktiske driftsomkostninger til miljø- og servicemål i 2013, jf. reguleringsregnskabet",144016,"kr."]
[null,"Tillæg for budgetterede driftsomkostninger til miljø- og servicemål i prisloft 2013",100000,"kr."]
[null,"Korrektion af tillæg for budgetterede driftsomkostninger til miljø- og servicemål i 2013",{"$f":"C13-C14","v":44016},"kr."]

{"sheet":"10. Klimatilpasning","index":9,"n_rows":16,"n_cols":4,"rows_kept":16,"cut":false,"hidden":false,"merged":[[3,1,3,3],[12,1,12,3],[6,1,6,3]]}
[{"$f":"'9. Miljø- og servicemål'!A1","v":"Ringkøbing-Skjern Spildevand A/S"}]
[]
[]
[null,"Fane 10. Medfinansiering af klimatilpasningsprojekter"]
[]
[]
[null,"Tillæg for budgetterede omkostninger til medfinansiering af klimatilpasningsprojekter i 2015"]
[null,null,0,"kr."]
[null,"Tillæg i alt",{"$f":" SUM(C8:C8)","v":0},"kr."]
[]
[]
[]
[null,"Korrektion af tillæg for faktiske omkostninger til medfinansiering af klimatilpasningsprojekter i 2013"]
[null,"Selskabets faktiske driftsomkostninger til klimatilpasningsprojekter i 2013, jf. reguleringsregnskabet",0,"kr."]
[null,"Tillæg for budgetterede driftsomkostninger til klimatilpasningsprojekter i prisloft 2013",0,"kr."]
[null,"Korrektion af tillæg for budgetterede omkostninger til klimatilpasningsprojekter i 2013",{"$f":"C14-C15","v":0},"kr."]

{"sheet":"11. Nettofinansielle poster","index":10,"n_rows":16,"n_cols":4,"rows_kept":16,"cut":false,"hidden":false,"merged":[[3,1,3,3]]}
[{"$f":"'10. Klimatilpasning'!A1","v":"Ringkøbing-Skjern Spildevand A/S"}]
[]
[]
[null,"Fane 11. Nettofinansielle poster"]
[]
[null,"Tillæg for budgetterede nettofinansielle poster i 2015"]
[null,"Budgetterede renteudgifter og gebyrer i 2015",null,"kr."]
[null,"Budgetterede renteindtægter i 2015",null,"kr."]
[null,"Tillæg/fradrag i alt",606000,"kr."]
[]
[]
[]
[null,"Korrektion af tillæg for faktiske nettofinansielle poster i 2013"]
[null,"Selskabets faktiske nettofinansielle poster i 2013, jf. reguleringsregnskabet",190301,"kr."]
[null,"Tillæg for budgetterede nettofinansielle poster i prisloft 2013",833300,"kr."]
[null,"Korrektion af tillæg for budgetterede nettofinansielle poster i 2013",{"$f":"C14-C15","v":-642999},"kr."]

{"sheet":"12. Over- eller underdækning","index":11,"n_rows":11,"n_cols":4,"rows_kept":11,"cut":false,"hidden":false,"merged":[[3,1,3,3]]}
[{"$f":"'11. Nettofinansielle poster'!A1","v":"Ringkøbing-Skjern Spildevand A/S"}]
[]
[]
[null,"Fane 12. Over- eller underdækning til og med 2010"]
[]
[null,"Tillæg/fradrag for over- eller underdækning til og med 2010"]
[null,"Opgjort over- eller underdækning per 31. december 2010",0,"kr."]
[null,"Heraf beløb indregnet i prislofterne for 2012 - 2014",0,"kr."]
[null,"Endnu ikke indregnet over- eller underdækning",{"$f":"C7-C8","v":0},"kr."]
[null,"Resterende indregningsperiode (fastsat i prisloftet for 2012)",0,"år"]
[null,"Tillæg/fradrag i alt",{"$f":"IF(C7=0,0,C9/C10)","v":0},"kr."]

{"sheet":"13. Kontrol med indtægtsrammen","index":12,"n_rows":38,"n_cols":12,"rows_kept":38,"cut":false,"hidden":false,"merged":[[3,1,3,5],[30,1,30,4],[5,1,5,5]]}
[{"$f":"'12. Over- eller underdækning'!A1","v":"Ringkøbing-Skjern Spildevand A/S"}]
[]
[]
[null,"Fane 13. Korrektion for overholdelse af indtægtsrammen i prisloftet for 2013"]
[]
[null,"Samlet opgørelse vedrørende overholdelse af indtægtsrammen i prisloftet for 2013"]
[null,"Indtægtsramme i prisloftet for 2013",null,null,117641333,"kr."]
[null,"Ikke anvendt likviditet vedrørende investeringer i 2013"]
[null,"Tillæg for historiske investeringer ",null,"kr."]
[null,"Tillæg for gennemførte investeringer i 2011",null,"kr."]
[null,"Korrektion af tillæg for planlagte investeringer i 2011",null,"kr."]
[null,"Tillæg for planlagte investeringer i 2012 og 2013",null,"kr."]
[null,"Indtægter fra tilslutningsbidrag",null,"kr."]
[null,"Indtægter fra salg af anlægsaktiver",null,"kr."]
[null,"Erstatninger vedr. anlægsaktiver mv.",null,"kr."]
[null,"Ekstraordinær effektiviseringsgevinst anvendt til investeringer",null,"kr."]
[null,"Udgifter til investeringer",null,"kr."]
[null,"Ikke anvendt likviditet vedr. investeringer i alt",{"$f":"SUM(C9:C17)","v":0},"kr.",{"$f":"IF(C18<0,0,-C18)","v":0},"kr."]
[null,"Ekstraordinære effektiviseringsgevinster anvendt til takstnedsættelse"]
[null,"Ekstraordinær effektiviseringsgevinst anvendt til takstnedsættelse",0,"kr.",{"$f":"-C20","v":0},"kr."]
[null,"Korrektion af ikke opkrævet tillæg fra 2011 i prisloft 2013"]
[null,"Korrektion af ikke opkrævet tillæg fra 2011 i prisloft 2013",0,"kr.",{"$f":"-C22","v":0},"kr."]
[null,"Indtægter fra primære aktiviteter mv."]
[null,"Indtægter fra kubikmetertakster, faste takster, særbidrag, målergebyrer samt andre takster og gebyrer",null,"kr."]
[null,"Andre indtægter i prisloftåret, som selskabet har opnået i forbindelse med eller som følge af selskabets primære aktiviteter",null,"kr."]
[null,"Indtægter fra primære aktiviteter mv. i alt",{"$f":"SUM(C24:C25)","v":0},"kr.",{"$f":"-C26","v":0},"kr."]
[null,"Tillæg/fradrag i prisloftet for 2015 i alt",null,null,-3059609.5,"kr."]
[]
[]
[]
[null,"Oversigt over ekstraordinære effektiviseringsgevinster"]
[]
[null,null,2012,null,2013,null,2014,null,2015,null,2016]
[null,"Indhentet ekstraordinær effektiviseringsgevinst",1892947.5,"kr.",1759298,"kr.",null,"kr.",null,"kr.",null,"kr."]
[null,"Gevinst anvendt til investeringer",0,"kr.",0,"kr.",null,"kr.",null,"kr.",null,"kr."]
[null,"Gevinst anvendt til takstnedsættelse",0,"kr.",0,"kr.",null,"kr.",null,"kr.",null,"kr."]
[null,"Korrektion for  effektiviseringsgevinst der ikke er anvendt inden 4 år",0,"kr.",0,"kr.",null,"kr.",null,"kr.",{"$f":"IF(C38>SUM(E35:I36),C38-SUM(E35:I36),0)*-1","v":-1892947.5},"kr."]
[null,"Resterende gevinst",{"$f":"C34-C35-C36","v":1892947.5},"kr.",{"$f":"C38+E34-E35-E36","v":3652245.5},"kr.",{"$f":"E38+G34-G35-G36","v":3652245.5},"kr.",{"$f":"G38+I34-I35-I36","v":3652245.5},"kr.",{"$f":"I38+K34-K35-K36+K37","v":1759298},"kr."]